bitfinex/quotes_BTCUSD_20241208
["timestamp","ask_amount","ask_price","bid_price","bid_amount"]
[1733633142728,0.0027338,99870.0,99869.0,0.269483]
[1733633143092,0.0027338,99870.0,99869.0,0.272483]
[1733633146748,0.0027338,99870.0,99869.0,0.28268638]
[1733633151292,0.0009874,99897.0,99886.0,0.140159]
[1733633151526,0.0009874,99897.0,99895.0,0.140147]
[1733633151730,0.04024267,99914.0,99895.0,0.280294]
[1733633151959,0.04024267,99915.0,99895.0,0.280294]
[1733633152169,0.0795836,99918.0,99895.0,0.280294]
[1733633152372,0.0039836,99918.0,99897.0,0.140144]
[1733633152817,0.0029908,99918.0,99897.0,0.140144]
[1733633153460,0.0029908,99918.0,99897.0,0.144144]
[1733633155147,0.0029908,99918.0,99897.0,0.145144]
[1733633155711,0.0029908,99918.0,99897.0,0.24517351]
[1733633158055,0.0029908,99918.0,99897.0,0.25528133]
[1733633159771,0.0029908,99918.0,99897.0,0.26503866]
[1733633161508,8e-07,99898.0,99897.0,0.26403866]
[1733633161716,8e-07,99898.0,99897.0,0.26603866]
[1733633162152,8e-07,99898.0,99897.0,0.26003866]
[1733633162387,6e-07,99900.0,99899.0,0.00975733]
[1733633162615,6e-07,99900.0,99899.0,0.18758684]
[1733633163101,6e-07,99900.0,99899.0,0.23758684]
[1733633163727,0.0029908,99918.0,99909.0,0.140127]
[1733633163935,0.0029908,99918.0,99909.0,0.24026611]
[1733633165696,0.0029908,99918.0,99909.0,0.24426611]
[1733633167626,0.0029908,99918.0,99909.0,0.25470361]
[1733633169035,0.0029908,99918.0,99909.0,0.26446094]
[1733633169532,4e-07,99910.0,99909.0,0.26446094]
[1733633169715,4e-07,99910.0,99909.0,0.34076094]
[1733633170447,4e-07,99910.0,99909.0,0.38756094]
[1733633172205,4e-07,99910.0,99909.0,0.43756094]
[1733633172619,4e-07,99910.0,99909.0,0.43656094]
[1733633172818,4e-07,99910.0,99909.0,0.43356094]
[1733633173036,0.0010004,99910.0,99909.0,0.44256094]
[1733633173240,4e-07,99910.0,99909.0,0.44256094]
[1733633174088,0.0017334,99910.0,99909.0,0.43280361]
[1733633174298,0.0017334,99910.0,99909.0,0.44796241]
[1733633174493,0.0027334,99910.0,99909.0,0.45396241]
[1733633175380,0.001733,99910.0,99909.0,0.43896241]
[1733633175698,0.001733,99910.0,99909.0,0.44396241]
[1733633175922,0.001733,99910.0,99909.0,0.40296241]
[1733633176133,0.001733,99910.0,99909.0,0.44796241]
[1733633176555,0.001733,99910.0,99909.0,0.45296241]
[1733633177707,0.001733,99910.0,99909.0,0.40296241]
[1733633177907,0.001733,99910.0,99909.0,0.45296241]
[1733633178670,0.001733,99910.0,99909.0,0.40296241]
[1733633180847,0.0029908,99918.0,99909.0,0.40296241]
[1733633181069,0.0029908,99918.0,99917.0,0.14987333]
[1733633181259,0.0029908,99918.0,99917.0,0.24990284]
[1733633181479,0.0029908,99918.0,99917.0,0.25529123]
[1733633182441,0.0029908,99918.0,99917.0,0.26329123]
[1733633182807,0.0029908,99918.0,99917.0,0.26629123]
[1733633184373,0.0029908,99918.0,99917.0,0.26329123]
[1733633184578,0.0029908,99918.0,99917.0,0.26729123]
[1733633185126,0.0029908,99918.0,99917.0,0.25929123]
[1733633185495,0.0029908,99918.0,99917.0,0.26729123]
[1733633192315,0.0029908,99918.0,99917.0,0.35677615]
[1733633192519,0.0029908,99918.0,99917.0,0.26729123]
[1733633193616,0.0029908,99918.0,99917.0,0.59823677]
[1733633194359,0.0029908,99918.0,99917.0,0.77720662]
[1733633195197,0.0029908,99918.0,99917.0,0.59823677]
[1733633196049,8e-07,99918.0,99917.0,0.59823677]
[1733633196217,3e-07,99930.0,99929.0,0.00975733]
[1733633196372,3e-07,99930.0,99929.0,0.10978684]
[1733633196577,0.0029908,99938.0,99937.0,0.140088]
[1733633196799,0.0029908,99938.0,99937.0,0.57106305]
[1733633197457,0.0029908,99938.0,99937.0,0.79559356]
[1733633197862,0.0029908,99938.0,99937.0,0.57106305]
[1733633198311,0.0039908,99938.0,99937.0,0.57106305]
[1733633199329,0.0039908,99938.0,99937.0,0.70577447]
[1733633199506,0.0029908,99938.0,99937.0,0.65066213]
[1733633199713,0.0029908,99938.0,99937.0,0.47103354]
[1733633199913,0.0039908,99938.0,99937.0,0.22990404]
[1733633200114,0.0823908,99938.0,99937.0,0.14543089]
[1733633200319,0.0813908,99938.0,99937.0,0.14543089]
[1733633200777,0.0813908,99938.0,99937.0,0.14643089]
[1733633200944,0.0813908,99938.0,99937.0,0.14943089]
[1733633201562,0.0813908,99938.0,99937.0,0.23925759]
[1733633201737,0.0813908,99938.0,99937.0,0.14943089]
[1733633203382,0.0813908,99938.0,99937.0,0.23925759]
[1733633203824,0.0813908,99938.0,99937.0,0.2492527]
[1733633204463,0.0813908,99938.0,99937.0,0.159426]
[1733633204665,0.0813908,99938.0,99937.0,0.2492527]
[1733633205124,0.0813908,99938.0,99937.0,0.159426]
[1733633205291,0.0813908,99938.0,99937.0,0.24927986]
[1733633205639,0.0813908,99938.0,99937.0,0.159426]
[1733633208216,0.0813908,99938.0,99937.0,0.62601117]
[1733633208692,0.0813908,99938.0,99937.0,0.29422485]
[1733633209148,0.0813908,99938.0,99937.0,0.29424664]
[1733633209813,0.0813908,99938.0,99937.0,0.159426]
[1733633210284,0.0813908,99938.0,99937.0,0.2493109]
[1733633210498,0.0813908,99938.0,99937.0,0.24931286]
[1733633210723,0.0029908,99938.0,99937.0,0.24931286]
[1733633210936,0.0029908,99938.0,99937.0,0.62604846]
[1733633211160,0.0029908,99938.0,99937.0,0.49122782]
[1733633214067,0.0029908,99938.0,99937.0,0.159426]
[1733633214283,0.0029908,99938.0,99937.0,0.2493299]
[1733633214505,0.0029908,99938.0,99937.0,0.24932899]
[1733633214708,0.0029908,99938.0,99937.0,0.159426]
[1733633215126,0.0029908,99938.0,99937.0,0.156426]
[1733633218102,0.0029908,99938.0,99937.0,0.24632899]
[1733633218551,0.0029908,99938.0,99937.0,0.156426]
[1733633218875,0.0029908,99938.0,99937.0,0.24634186]
[1733633219330,0.0029908,99938.0,99937.0,0.156426]
[1733633220179,0.0029908,99938.0,99937.0,0.24634308]
[1733633220400,0.0029908,99938.0,99937.0,0.24634877]
[1733633220983,0.0029908,99938.0,99937.0,0.24634939]
[1733633221363,0.0029908,99938.0,99937.0,0.156426]
[1733633221563,0.0029908,99938.0,99937.0,0.24635666]
[1733633221966,0.0029908,99938.0,99937.0,0.156426]
[1733633222319,0.0029908,99938.0,99937.0,0.29131109]
[1733633222520,0.0029908,99938.0,99937.0,0.48840771]
[1733633222946,0.0029908,99938.0,99937.0,0.6682545]
[1733633223373,0.0029908,99938.0,99937.0,0.6672545]
[1733633223586,0.0029908,99938.0,99937.0,0.6682545]
[1733633223811,0.0029908,99938.0,99937.0,0.48740771]
[1733633224101,0.0029908,99938.0,99937.0,0.48840771]
[1733633224309,0.0029908,99938.0,99937.0,0.49140771]
[1733633224917,0.0029908,99938.0,99937.0,0.49142386]
[1733633226291,0.0029908,99938.0,99937.0,0.71626897]
[1733633227177,0.0029908,99938.0,99937.0,0.49142386]
[1733633230238,0.0029908,99938.0,99937.0,0.49148572]
[1733633232047,0.0008665,99960.0,99956.0,0.140061]
[1733633232460,0.0008665,99960.0,99956.0,0.47764042]
[1733633232683,0.0008665,99960.0,99956.0,0.1455807]
[1733633233364,0.00316368,99958.0,99957.0,0.33186879]
[1733633233761,0.00316368,99958.0,99957.0,0.33774647]
[1733633234823,0.00316368,99958.0,99957.0,0.38544647]
[1733633235039,0.00316368,99958.0,99957.0,0.39019395]
[1733633236403,0.00316368,99958.0,99957.0,0.28505105]
[1733633236608,0.00316368,99958.0,99957.0,0.39219395]
[1733633236880,0.00316368,99958.0,99957.0,0.28505045]
[1733633237100,0.00316368,99958.0,99957.0,0.39219395]
[1733633237307,0.00316368,99958.0,99957.0,0.61661355]
[1733633237739,0.00316368,99958.0,99957.0,0.39219395]
[1733633239443,0.00316368,99958.0,99957.0,0.57166948]
[1733633240070,0.00316368,99958.0,99957.0,0.57131947]
[1733633240284,0.00316368,99958.0,99957.0,0.39184123]
[1733633242353,0.00316368,99958.0,99957.0,0.19513534]
[1733633242585,0.00316368,99958.0,99957.0,0.39171261]
[1733633242804,0.00316368,99958.0,99957.0,0.19513406]
[1733633243059,0.00316368,99958.0,99957.0,0.14743406]
[1733633243294,0.00316368,99958.0,99957.0,0.01287768]
[1733633243957,0.07936368,99958.0,99957.0,0.01287768]
[1733633244410,0.07936368,99958.0,99957.0,0.00587768]
[1733633244628,0.07936368,99958.0,99957.0,0.00987768]
[1733633244839,0.07936368,99958.0,99957.0,0.00687768]
[1733633245479,0.07936368,99958.0,99957.0,0.00587768]
[1733633245706,0.00125049,99969.0,99968.0,0.140044]
[1733633245925,0.0017336,99970.0,99968.0,0.140044]
[1733633246144,0.0017336,99970.0,99968.0,0.14605459]
[1733633246354,0.0017336,99970.0,99969.0,0.08966951]
[1733633246563,0.0017336,99970.0,99968.0,0.28061097]
[1733633246789,0.0017336,99970.0,99969.0,0.33700644]
[1733633247011,0.0017336,99970.0,99969.0,0.51648468]
[1733633247233,0.0017336,99970.0,99969.0,0.33700644]
[1733633247440,0.0017336,99970.0,99969.0,0.00600287]
[1733633248093,0.0017336,99970.0,99969.0,0.09664815]
[1733633248536,0.0017336,99970.0,99969.0,0.00700287]
[1733633249177,0.0017336,99970.0,99969.0,0.22034815]
[1733633249392,0.0017336,99970.0,99969.0,0.22030988]
[1733633249668,0.0017336,99970.0,99969.0,0.13070287]
[1733633249871,0.0017336,99970.0,99969.0,0.22031065]
[1733633250301,0.0017336,99970.0,99969.0,0.13070287]
[1733633250743,0.0017336,99970.0,99969.0,0.12970287]
[1733633251204,0.0017336,99970.0,99969.0,0.13170287]
[1733633252488,0.0017336,99970.0,99969.0,0.05570287]
[1733633256356,0.0017336,99970.0,99969.0,0.00800287]
[1733633271447,0.0827336,99970.0,99969.0,0.00800287]
[1733633271893,0.0827336,99970.0,99969.0,0.00554717]
[1733633272788,0.0017336,99970.0,99969.0,0.00554717]
[1733633272997,6e-07,99970.0,99969.0,0.48519769]
[1733633273894,6e-07,99970.0,99969.0,0.70947164]
[1733633274220,6e-07,99970.0,99969.0,0.48519769]
[1733633275322,6e-07,99970.0,99969.0,0.48619769]
[1733633275779,6e-07,99970.0,99969.0,0.48919769]
[1733633280891,6e-07,99970.0,99969.0,0.54656651]
[1733633281095,6e-07,99970.0,99969.0,0.44116651]
[1733633284983,6e-07,99970.0,99969.0,0.46695448]
[1733633285193,6e-07,99970.0,99969.0,0.62205273]
[1733633287460,6e-07,99970.0,99969.0,0.891515]
[1733633287819,6e-07,99970.0,99969.0,0.62205273]
[1733633288487,6e-07,99970.0,99969.0,0.59215448]
[1733633288700,6e-07,99970.0,99969.0,0.89151105]
[1733633289126,6e-07,99970.0,99969.0,0.59215448]
[1733633289356,6e-07,99970.0,99969.0,0.89151148]
[1733633289566,6e-07,99970.0,99969.0,0.62204768]
[1733633290331,6e-07,99970.0,99969.0,0.59215448]
[1733633290791,6e-07,99970.0,99969.0,0.341137]
[1733633291463,6e-07,99970.0,99969.0,0.34148861]
[1733633292136,6e-07,99970.0,99969.0,0.61126407]
[1733633292583,6e-07,99970.0,99969.0,0.34148861]
[1733633292821,6e-07,99970.0,99969.0,0.61126416]
[1733633293055,6e-07,99970.0,99969.0,0.34148861]
[1733633293293,6e-07,99970.0,99969.0,0.61126485]
[1733633293968,6e-07,99970.0,99969.0,0.34148861]
[1733633295084,6e-07,99970.0,99969.0,0.61126485]
[1733633295306,6e-07,99970.0,99969.0,0.56630798]
[1733633295525,0.0764006,99970.0,99969.0,0.14445288]
[1733633295744,0.0764006,99970.0,99969.0,0.09947387]
[1733633295978,0.0764006,99970.0,99969.0,0.00954717]
[1733633296114,0.0764006,99970.0,99969.0,0.00854717]
[1733633296337,0.15021263,99970.0,99969.0,0.00554717]
[1733633296913,0.14921263,99970.0,99969.0,0.002]
[1733633297174,0.14921263,99970.0,99969.0,0.00554035]
[1733633297390,0.14921263,99970.0,99967.0,0.140045]
[1733633297575,0.14921263,99970.0,99969.0,0.00554386]
[1733633297808,0.14921263,99970.0,99965.0,0.0899267]
[1733633297809,0.10061203,99969.0,99968.0,0.00554553]
[1733633298015,0.10061203,99969.0,99966.0,0.140047]
[1733633298411,0.02421203,99968.0,99966.0,0.140047]
[1733633298857,0.02421203,99968.0,99965.0,0.140049]
[1733633299737,0.02521203,99968.0,99965.0,0.140049]
[1733633299944,0.02421203,99968.0,99965.0,0.140049]
[1733633300177,0.02421203,99968.0,99962.0,0.0899267]
[1733633300388,0.02421203,99968.0,99960.0,0.0008659]
[1733633300389,0.10041203,99962.0,99960.0,0.0008659]
[1733633300684,0.0762,99961.0,99960.0,0.0008659]
[1733633301363,0.14671203,99961.0,99960.0,0.0008659]
[1733633302677,0.14871203,99961.0,99960.0,0.0008659]
[1733633303109,0.25074154,99961.0,99960.0,0.0008659]
[1733633303962,0.24874154,99961.0,99960.0,0.0008659]
[1733633304387,0.25074154,99961.0,99960.0,0.0008659]
[1733633304848,0.24874154,99961.0,99960.0,0.0008659]
[1733633305291,0.25174154,99961.0,99960.0,0.0008659]
[1733633305508,0.24674154,99961.0,99960.0,0.0008659]
[1733633305750,0.24974154,99961.0,99960.0,0.0008659]
[1733633305965,0.25174154,99961.0,99960.0,0.0008659]
[1733633310328,0.39179554,99961.0,99960.0,0.0008659]
[1733633311265,0.40788317,99961.0,99960.0,0.0008659]
[1733633311480,0.39179554,99961.0,99960.0,0.0008659]
[1733633312474,0.38979554,99961.0,99960.0,0.0008659]
[1733633312673,0.38679554,99961.0,99960.0,0.0008659]
[1733633312882,0.39479554,99961.0,99960.0,0.0008659]
[1733633318228,0.41779554,99961.0,99960.0,0.0008659]
[1733633320437,0.47357999,99961.0,99960.0,0.0008659]
[1733633320654,0.41779554,99961.0,99960.0,0.0008659]
[1733633321580,0.40979554,99961.0,99960.0,0.0008659]
[1733633321802,0.41679554,99961.0,99960.0,0.0018659]
[1733633322009,0.42379554,99961.0,99960.0,0.0028659]
[1733633334667,0.63017999,99961.0,99960.0,0.0028659]
[1733633335620,0.57379554,99961.0,99960.0,0.0028659]
[1733633345318,0.62379554,99961.0,99960.0,0.0028659]
[1733633345549,0.70496537,99961.0,99960.0,0.0028659]
[1733633345764,1.00314057,99961.0,99960.0,0.0028659]
[1733633346191,1.01879839,99961.0,99960.0,0.0028659]
[1733633346383,1.01888053,99961.0,99960.0,0.0028659]
[1733633346822,1.11869587,99961.0,99960.0,0.0028659]
[1733633347081,1.29807596,99961.0,99960.0,0.0028659]
[1733633347464,1.11869587,99961.0,99960.0,0.0028659]
[1733633348337,0.12421203,99958.0,99957.0,0.00017288]
[1733633348589,1.1311509,99958.0,99957.0,0.00017288]
[1733633348807,0.90568405,99958.0,99957.0,0.00017288]
[1733633349898,0.95418405,99958.0,99957.0,0.00017288]
[1733633350308,0.85436871,99958.0,99957.0,0.00017288]
[1733633350721,0.86036871,99958.0,99957.0,0.00017288]
[1733633351157,0.86936871,99958.0,99957.0,0.00117288]
[1733633352009,0.88972359,99958.0,99957.0,0.00117288]
[1733633352215,1.11387947,99958.0,99957.0,0.00117288]
[1733633352457,1.2136712,99958.0,99957.0,0.00117288]
[1733633352684,0.98953893,99958.0,99957.0,0.00117288]
[1733633352911,0.98759272,99958.0,99957.0,0.00117288]
[1733633353365,0.98759272,99958.0,99957.0,0.00017288]
[1733633353366,0.97259272,99958.0,99957.0,0.00017288]
[1733633353590,0.97959272,99958.0,99957.0,0.00017288]
[1733633353807,0.98859272,99958.0,99957.0,0.00117288]
[1733633354026,1.53439272,99958.0,99957.0,0.00117288]
[1733633355351,1.75851668,99958.0,99957.0,0.00117288]
[1733633355605,1.53439272,99958.0,99957.0,0.00117288]
[1733633355824,1.75851401,99958.0,99957.0,0.00117288]
[1733633356038,1.53439272,99958.0,99957.0,0.00117288]
[1733633356273,1.75851188,99958.0,99957.0,0.00117288]
[1733633356674,1.43457738,99958.0,99957.0,0.00117288]
[1733633357130,1.65870022,99958.0,99957.0,0.00117288]
[1733633357343,1.43457738,99958.0,99957.0,0.00117288]
[1733633358146,1.58269993,99958.0,99957.0,0.00117288]
[1733633358374,1.40340755,99958.0,99957.0,0.00117288]
[1733633358582,1.68250849,99958.0,99957.0,0.00117288]
[1733633358796,1.40040755,99958.0,99957.0,0.00117288]
[1733633359130,1.43153096,99958.0,99957.0,0.00117288]
[1733633359577,1.40040755,99958.0,99957.0,0.00117288]
[1733633359793,1.6556534,99958.0,99957.0,0.00117288]
[1733633360642,1.57968007,99958.0,99957.0,0.00117288]
[1733633361277,1.40040755,99958.0,99957.0,0.00117288]
[1733633361499,1.57969816,99958.0,99957.0,0.00117288]
[1733633361720,1.43153515,99958.0,99957.0,0.00117288]
[1733633363012,1.61082288,99958.0,99957.0,0.00117288]
[1733633363272,1.43153515,99958.0,99957.0,0.00117288]
[1733633363685,1.47305886,99958.0,99957.0,0.00117288]
[1733633366906,1.33303515,99958.0,99957.0,0.00117288]
[1733633367143,0.92269024,99958.0,99957.0,0.00117288]
[1733633367357,0.83304154,99958.0,99957.0,0.00117288]
[1733633368520,0.85604154,99958.0,99957.0,0.00117288]
[1733633368938,0.31024154,99958.0,99957.0,0.00117288]
[1733633371847,0.28724154,99958.0,99957.0,0.00117288]
[1733633372888,0.13724154,99958.0,99957.0,0.00117288]
[1733633373093,0.13724154,99958.0,99957.0,0.0840059]
[1733633373685,0.13024154,99958.0,99957.0,0.0840059]
[1733633373888,0.12824154,99958.0,99957.0,0.0830059]
[1733633374244,0.13724154,99958.0,99957.0,0.0840059]
[1733633374445,0.12124154,99958.0,99957.0,0.0830059]
[1733633374732,0.12624154,99958.0,99957.0,0.0830059]
[1733633374898,0.12624154,99958.0,99957.0,0.0840059]
[1733633374899,0.13424154,99958.0,99957.0,0.0840059]
[1733633378058,0.03421203,99958.0,99957.0,0.0840059]
[1733633378268,0.013,99958.0,99957.0,0.0840059]
[1733633378479,0.03421203,99958.0,99957.0,0.0840059]
[1733633378713,0.03421203,99958.0,99957.0,0.1290059]
[1733633379370,0.02921203,99958.0,99957.0,0.1290059]
[1733633379582,0.008,99958.0,99957.0,0.1290059]
[1733633379785,0.03121203,99958.0,99957.0,0.1290059]
[1733633380203,0.02121203,99958.0,99957.0,0.1280059]
[1733633380617,0.02121203,99958.0,99957.0,0.1290059]
[1733633383487,0.12124154,99958.0,99957.0,0.0518059]
[1733633383693,0.12124154,99958.0,99957.0,0.0068059]
[1733633383908,0.12124154,99958.0,99957.0,0.00117288]
[1733633384797,0.12124154,99958.0,99957.0,0.00017288]
[1733633385235,0.12524154,99958.0,99957.0,0.00017288]
[1733633386117,0.13024154,99958.0,99957.0,0.00017288]
[1733633386300,0.12124154,99958.0,99957.0,0.00017288]
[1733633386750,0.12824154,99958.0,99957.0,0.00017288]
[1733633387025,0.12424154,99958.0,99957.0,0.00017288]
[1733633387248,0.12824154,99958.0,99957.0,0.00017288]
[1733633391671,0.12824154,99958.0,99957.0,0.00578001]
[1733633391877,0.12824154,99958.0,99957.0,0.00017288]
[1733633392014,0.12824154,99958.0,99957.0,0.00578001]
[1733633392221,0.12824154,99958.0,99957.0,0.00017288]
[1733633392424,0.12824154,99958.0,99957.0,0.00578001]
[1733633392637,0.12824154,99958.0,99957.0,0.00017288]
[1733633393056,0.12824154,99958.0,99957.0,0.00578001]
[1733633395716,0.12824154,99958.0,99957.0,0.14584001]
[1733633396649,0.02821203,99958.0,99957.0,0.22354001]
[1733633397497,0.02421203,99958.0,99957.0,0.22354001]
[1733633397691,0.02821203,99958.0,99957.0,0.22354001]
[1733633397898,0.02521203,99958.0,99957.0,0.22354001]
[1733633398097,0.02121203,99958.0,99957.0,0.22354001]
[1733633398306,0.02521203,99958.0,99957.0,0.22354001]
[1733633398508,0.02521203,99958.0,99957.0,0.27034001]
[1733633398707,0.02221203,99958.0,99957.0,0.27034001]
[1733633399180,0.02321203,99958.0,99957.0,0.27034001]
[1733633399601,0.02221203,99958.0,99957.0,0.27034001]
[1733633400044,0.02321203,99958.0,99957.0,0.27034001]
[1733633401203,0.002,99958.0,99957.0,0.27034001]
[1733633402043,0.02321203,99958.0,99957.0,0.27034001]
[1733633402279,0.02221203,99958.0,99957.0,0.27034001]
[1733633402642,0.02321203,99958.0,99957.0,0.27034001]
[1733633403075,0.02221203,99958.0,99957.0,0.27034001]
[1733633407346,0.12224154,99958.0,99957.0,0.00578001]
[1733633407555,0.12349216,99958.0,99957.0,0.00017288]
[1733633408002,0.12349216,99958.0,99957.0,0.00576559]
[1733633408191,0.12349216,99958.0,99957.0,0.00017288]
[1733633408596,0.12249216,99958.0,99957.0,0.00017288]
[1733633408874,0.12449216,99958.0,99957.0,0.00017288]
[1733633409061,0.12449216,99958.0,99957.0,0.00576559]
[1733633409277,0.12449216,99958.0,99957.0,0.00017288]
[1733633409527,0.12449216,99958.0,99957.0,0.00576559]
[1733633409528,0.12649216,99958.0,99957.0,0.00576559]
[1733633409728,0.12649216,99958.0,99957.0,0.00017288]
[1733633409931,0.12649216,99958.0,99957.0,0.00576559]
[1733633410159,0.12649216,99958.0,99957.0,0.00017288]
[1733633410380,0.12649216,99958.0,99957.0,0.00576559]
[1733633410621,0.12649216,99958.0,99957.0,0.00017288]
[1733633410820,0.12649216,99958.0,99957.0,0.00576559]
[1733633413512,0.12649216,99958.0,99957.0,0.00017288]
[1733633432263,0.02646265,99958.0,99957.0,0.00017288]
[1733633432504,0.004,99958.0,99957.0,0.00017288]
[1733633432735,0.004,99958.0,99957.0,0.08426558]
[1733633433188,0.002,99958.0,99957.0,0.08426558]
[1733633433632,0.0017338,99960.0,99958.0,0.140058]
[1733633436084,0.0037338,99960.0,99958.0,0.140058]
[1733633436290,0.0037338,99960.0,99959.0,0.00669025]
[1733633437310,0.0027338,99960.0,99959.0,0.00669025]
[1733633437529,0.0037338,99960.0,99959.0,0.00669025]
[1733633437714,0.0027338,99960.0,99959.0,0.00669025]
[1733633439263,0.0037338,99960.0,99959.0,0.00669025]
[1733633450604,0.02494583,99960.0,99959.0,0.00669025]
[1733633450816,0.12497534,99960.0,99959.0,0.00669025]
[1733633451022,0.02121203,99958.0,99957.0,0.00017288]
[1733633452690,0.02121203,99958.0,99957.0,0.00217288]
[1733633461536,0.12249211,99958.0,99957.0,0.00217288]
[1733633462423,0.12124154,99958.0,99957.0,0.00217288]
[1733633462810,0.12124154,99958.0,99957.0,0.00886407]
[1733633462811,0.02121203,99958.0,99957.0,0.00886407]
[1733633463044,0.02121203,99958.0,99957.0,0.00217288]
[1733633464820,0.02121203,99958.0,99957.0,0.00886472]
[1733633471646,0.0017338,99960.0,99958.0,0.140058]
[1733633472193,0.0017338,99960.0,99959.0,0.36593556]
[1733633472409,0.0017338,99960.0,99959.0,0.45581332]
[1733633472619,0.0017338,99960.0,99959.0,0.56293174]
[1733633473567,0.0027338,99960.0,99959.0,0.57093174]
[1733633473760,0.0027338,99960.0,99959.0,0.56293174]
[1733633473985,0.0027338,99960.0,99959.0,0.57093174]
[1733633473986,0.0037338,99960.0,99959.0,0.57093174]
[1733633474197,0.0027338,99960.0,99959.0,0.57093174]
[1733633474416,0.0027338,99960.0,99959.0,0.56293174]
[1733633474417,0.0017338,99960.0,99959.0,0.56293174]
[1733633475270,0.0027338,99960.0,99959.0,0.56393174]
[1733633476314,0.0037338,99960.0,99959.0,0.57293174]
[1733633478118,0.0037338,99960.0,99959.0,0.60171971]
[1733633478550,8e-07,99960.0,99959.0,0.60171971]
[1733633479057,8e-07,99960.0,99959.0,0.65171971]
[1733633480382,8e-07,99960.0,99959.0,0.75691971]
[1733633480785,8e-07,99960.0,99959.0,1.07135301]
[1733633480997,8e-07,99960.0,99959.0,0.80171971]
[1733633481655,6e-07,99970.0,99969.0,0.315443]
[1733633481872,6e-07,99970.0,99969.0,0.74661591]
[1733633482088,6e-07,99970.0,99969.0,0.75326828]
[1733633482472,0.0029908,99978.0,99977.0,0.140032]
[1733633482689,0.0029908,99978.0,99977.0,0.217732]
[1733633483915,0.0029908,99978.0,99977.0,0.220732]
[1733633484133,0.0029908,99978.0,99977.0,0.221732]
[1733633485594,0.0029908,99978.0,99977.0,0.22837458]
[1733633495355,0.0029908,99978.0,99977.0,0.15067458]
[1733633495586,0.02420283,99978.0,99977.0,0.15067458]
[1733633495819,0.10510283,99978.0,99977.0,0.15067458]
[1733633496735,0.10510283,99978.0,99977.0,0.14667458]
[1733633497169,0.10510283,99978.0,99977.0,0.14767458]
[1733633497398,0.10710283,99978.0,99977.0,0.14767458]
[1733633498119,0.10710283,99978.0,99977.0,0.00764258]
[1733633498758,0.10510283,99978.0,99977.0,0.00764258]
[1733633499167,0.10610283,99978.0,99977.0,0.00764258]
[1733633517205,0.02520283,99978.0,99977.0,0.00764258]
[1733633518691,0.0039908,99978.0,99977.0,0.00764258]
[1733633518901,0.0039908,99978.0,99977.0,0.421997]
[1733633519099,0.0039908,99978.0,99977.0,0.57092651]
[1733633520055,0.0039908,99978.0,99977.0,0.57086223]
[1733633520477,0.0029908,99978.0,99977.0,0.57086223]
[1733633520692,0.0029908,99978.0,99977.0,0.79534926]
[1733633520876,0.0029908,99978.0,99977.0,0.79634926]
[1733633521503,8e-07,99978.0,99977.0,0.57185375]
[1733633521712,8e-07,99978.0,99977.0,0.57085375]
[1733633521925,8e-07,99978.0,99977.0,0.57385375]
[1733633522148,8e-07,99978.0,99977.0,0.86803634]
[1733633522386,8e-07,99978.0,99977.0,0.59864172]
[1733633522611,8e-07,99978.0,99977.0,0.60564172]
[1733633523715,8e-07,99978.0,99977.0,0.8748938]
[1733633523947,8e-07,99978.0,99977.0,0.87489591]
[1733633524342,8e-07,99978.0,99977.0,0.87485909]
[1733633524562,4e-07,99980.0,99978.0,0.16881797]
[1733633524784,4e-07,99980.0,99979.0,0.43151117]
[1733633525249,4e-07,99980.0,99979.0,0.43829859]
[1733633525669,4e-07,99980.0,99979.0,0.43801563]
[1733633526366,4e-07,99980.0,99979.0,0.44301563]
[1733633527435,4e-07,99980.0,99979.0,0.44501563]
[1733633528082,4e-07,99980.0,99979.0,0.11381693]
[1733633528290,4e-07,99980.0,99979.0,0.66923097]
[1733633528503,4e-07,99980.0,99979.0,0.44496167]
[1733633528712,4e-07,99980.0,99979.0,0.66921773]
[1733633528918,4e-07,99980.0,99979.0,0.44496167]
[1733633530035,0.0017342,99990.0,99979.0,0.66920438]
[1733633530260,0.0017342,99990.0,99986.0,0.08969728]
[1733633530467,0.0017342,99990.0,99989.0,0.140015]
[1733633530911,0.0017342,99990.0,99989.0,0.14677849]
[1733633531338,0.0027342,99990.0,99989.0,0.14677849]
[1733633531757,0.00279179,99990.0,99989.0,0.14677849]
[1733633532190,0.00179179,99990.0,99989.0,0.14677849]
[1733633532394,0.00179179,99990.0,99989.0,0.14777849]
[1733633533547,0.00279179,99990.0,99989.0,0.14777849]
[1733633535596,0.00279179,99990.0,99989.0,0.00776349]
[1733633535597,0.02400382,99990.0,99989.0,0.00776349]
[1733633535803,0.10530382,99990.0,99989.0,0.00776349]
[1733633536012,0.10530382,99990.0,99989.0,0.001]
[1733633536634,0.20533333,99990.0,99989.0,0.001]
[1733633537437,0.20433333,99990.0,99989.0,0.001]
[1733633537679,0.0815,99976.0,99975.0,0.140033]
[1733633538130,0.0815,99976.0,99975.0,0.14633854]
[1733633539285,0.0815,99976.0,99975.0,0.14933854]
[1733633541412,0.10271203,99976.0,99975.0,0.14933854]
[1733633542482,0.10271203,99976.0,99975.0,0.00930554]
[1733633542700,0.14811203,99976.0,99975.0,0.00930554]
[1733633543119,0.14811203,99976.0,99975.0,0.003]
[1733633548065,0.140018,99988.0,99976.0,0.140033]
[1733633548066,0.02121203,99982.0,99976.0,0.140033]
[1733633548278,0.09941203,99986.0,99977.0,0.1463518]
[1733633548484,0.02121203,99984.0,99983.0,0.140023]
[1733633548690,0.02121203,99986.0,99983.0,0.140023]
[1733633549134,0.02121203,99984.0,99983.0,0.140023]
[1733633550453,0.02221203,99984.0,99983.0,0.140023]
[1733633550581,0.02321203,99984.0,99983.0,0.140023]
[1733633552072,0.02321203,99984.0,99983.0,0.14633546]
[1733633554082,0.02254942,99984.0,99983.0,0.14633546]
[1733633566520,0.002,99984.0,99983.0,0.14633546]
[1733633566857,0.02254942,99984.0,99983.0,0.14633546]
[1733633567232,0.002,99984.0,99983.0,0.14633546]
[1733633567560,0.02254942,99984.0,99983.0,0.14633546]
[1733633576098,0.002,99984.0,99983.0,0.14633546]
[1733633578176,0.002,99984.0,99983.0,0.47792873]
[1733633578605,0.002,99984.0,99983.0,0.65743673]
[1733633578851,0.002,99984.0,99983.0,0.73653673]
[1733633579057,0.002,99984.0,99983.0,0.55702873]
[1733633579443,0.002,99984.0,99983.0,0.55705922]
[1733633580083,0.001,99984.0,99983.0,0.55705922]
[1733633580304,0.00179179,99990.0,99989.0,0.140015]
[1733633581629,0.00179179,99990.0,99989.0,0.141015]
[1733633582689,0.00279179,99990.0,99989.0,0.141015]
[1733633583401,0.00279179,99990.0,99989.0,0.23084856]
[1733633583611,0.00279179,99990.0,99989.0,0.141015]
[1733633591436,0.00279179,99990.0,99989.0,0.001]
[1733633593725,0.07929179,99990.0,99989.0,0.001]
[1733633597978,0.00279179,99990.0,99989.0,0.001]
[1733633622504,0.20607072,99990.0,99989.0,0.001]